fUST/lending_fUST_20260421
["ID","MTS","AMOUNT","RATE_DAILY","PERIOD"]
[420932507,1776738643903,-500.0,0.00016712,2]
[420932509,1776738643914,-550.2,0.00016712,2]
[420932510,1776738643924,-500.0,0.00016712,2]
[420932511,1776738643934,-500.0,0.00016712,2]
[420932512,1776738643944,-555.17,0.00016712,2]
[420932514,1776738643954,-500.0,0.00016712,2]
[420932516,1776738643964,-500.0,0.00016712,2]
[420932518,1776738643974,-500.0,0.00016712,2]
[420932519,1776738643984,-500.0,0.00016712,2]
[420932520,1776738643995,-566.33,0.00016712,2]
[420932521,1776738644005,-500.0,0.00016712,2]
[420932522,1776738644015,-700.65,0.00016712,2]
[420932523,1776738644025,-663.16,0.00016712,2]
[420932524,1776738644035,-500.0,0.00016712,2]
[420932525,1776738644046,-500.0,0.00016712,2]
[420932526,1776738644056,-1395.49,0.00016712,2]
[420932527,1776738644066,-500.0,0.00016712,2]
[420932528,1776738644077,-500.0,0.00016712,2]
[420932529,1776738644087,-915.61,0.00016712,2]
[420932530,1776738644098,-500.0,0.00016712,2]
[420932531,1776738644108,-500.0,0.00016712,2]
[420932532,1776738644118,-500.0,0.00016712,2]
[420932533,1776738644129,-500.0,0.00016712,2]
[420932534,1776738644139,-500.0,0.00016712,2]
[420932535,1776738644149,-500.0,0.00016712,2]
[420932536,1776738644159,-542.83698505,0.00016712,2]
[420932537,1776738644169,-500.0,0.00016712,2]
[420932538,1776738644179,-500.0,0.00016712,2]
[420932539,1776738644190,-500.0,0.00016712,2]
[420932540,1776738644200,-1554.06,0.00016712,2]
[420932541,1776738644210,-500.0,0.00016712,2]
[420932542,1776738644220,-582.68,0.00016712,2]
[420932543,1776738644231,-5611.23,0.00016712,2]
[420932544,1776738644241,-500.0,0.00016712,2]
[420932545,1776738644251,-8913.81,0.00016712,2]
[420932546,1776738644261,-500.0,0.00016712,2]
[420932547,1776738644271,-500.0,0.00016712,2]
[420932548,1776738644281,-1546.18,0.00016712,2]
[420932549,1776738644291,-7372.06,0.00016712,2]
[420932550,1776738644301,-6200.61,0.00016712,2]
[420932551,1776738644311,-578.24,0.00016712,2]
[420932552,1776738644322,-947.65,0.00016712,2]
[420932553,1776738644332,-585.09,0.00016712,2]
[420932554,1776738644343,-500.0,0.00016712,2]
[420932555,1776738644352,-500.0,0.00016712,2]
[420932556,1776738644363,-310.58168703,0.00016712,2]
[420932557,1776738644374,-500.0,0.00016712,2]
[420932558,1776738644384,-755.07,0.00016712,2]
[420932559,1776738644395,-500.0,0.00016712,2]
[420932560,1776738644405,-500.0,0.00016712,2]
[420932561,1776738644415,-736.57,0.00016712,2]
[420932562,1776738644426,-1858.23,0.00016712,2]
[420932563,1776738644436,-683.84,0.00016712,2]
[420932564,1776738644447,-3391.67,0.00016712,2]
[420932565,1776738644457,-942.56,0.00016712,2]
[420932566,1776738644468,-2845.63,0.00016712,2]
[420932567,1776738644478,-500.0,0.00016712,2]
[420932568,1776738644488,-500.0,0.00016712,2]
[420932569,1776738644498,-500.0,0.00016712,2]
[420932570,1776738644509,-931.87,0.00016712,2]
[420932571,1776738644519,-1468.68,0.00016712,2]
[420932572,1776738644529,-1208.98,0.00016712,2]
[420932573,1776738644540,-909.52,0.00016712,2]
[420932574,1776738644550,-500.0,0.00016712,2]
[420932575,1776738644561,-634.37,0.00016712,2]
[420932576,1776738644571,-1393.62,0.00016712,2]
[420932577,1776738644581,-1631.25,0.00016712,2]
[420932578,1776738644592,-1034.79,0.00016712,2]
[420932579,1776738644602,-5412.07,0.00016712,2]
[420932580,1776738644613,-1333.09,0.00016712,2]
[420932581,1776738644623,-500.0,0.00016712,2]
[420932582,1776738644633,-1055.62,0.00016712,2]
[420932583,1776738644644,-2738.88,0.00016712,2]
[420932584,1776738644655,-2731.89,0.00016712,2]
[420932585,1776738644665,-2600.62,0.00016712,2]
[420932586,1776738644676,-2254.44,0.00016712,2]
[420932587,1776738644686,-500.0,0.00016712,2]
[420932588,1776738644697,-2088.86,0.00016712,2]
[420932589,1776738644707,-500.0,0.00016712,2]
[420932590,1776738644718,-3845.39,0.00016712,2]
[420932591,1776738644728,-750.4,0.00016712,2]
[420932592,1776738644739,-2809.13,0.00016712,2]
[420932593,1776738644749,-5431.02,0.00016712,2]
[420932594,1776738644760,-500.0,0.00016712,2]
[420932595,1776738644771,-500.0,0.00016712,2]
[420932596,1776738644781,-500.0,0.00016712,2]
[420932597,1776738644792,-844.1,0.00016712,2]
[420932598,1776738644802,-764.76,0.00016712,2]
[420932599,1776738644813,-500.0,0.00016712,2]
[420932600,1776738644823,-628.08,0.00016712,2]
[420932601,1776738644833,-2269.79,0.00016712,2]
[420932602,1776738644844,-5859.1,0.00016712,2]
[420932603,1776738644854,-500.0,0.00016712,2]
[420932604,1776738644865,-500.0,0.00016712,2]
[420932605,1776738644875,-4245.16,0.00016712,2]
[420932606,1776738644886,-701.39,0.00016712,2]
[420932607,1776738644896,-915.33,0.00016712,2]
[420932608,1776738644907,-3796.29,0.00016712,2]
[420932609,1776738644917,-500.0,0.00016712,2]
[420932610,1776738644927,-23822.54,0.00016712,2]
[420932611,1776738644937,-1937.17,0.00016712,2]
[420932612,1776738644948,-939.33,0.00016712,2]
[420932613,1776738644959,-519.24,0.00016712,2]
[420932614,1776738644969,-2092.51,0.00016712,2]
[420932615,1776738644979,-513.66124991,0.00016712,2]
[420932616,1776738644988,-500.0,0.00016712,2]
[420932617,1776738644999,-528.23,0.00016712,2]
[420932618,1776738645009,-1690.89,0.00016712,2]
[420932619,1776738645020,-3778.88,0.00016712,2]
[420932620,1776738645030,-1209.507,0.00016712,2]
[420932621,1776738645040,-157.51364451,0.00016767,3]
[420932622,1776738645049,-206.62569576,0.0001679,60]
[420932623,1776738645059,-2489.61278851,0.00016868,2]
[420932624,1776738645069,-2000.1,0.000169,2]
[420932625,1776738645078,-10225.74044691,0.000169,2]
[420932626,1776738645088,-708.090944,0.00016915,7]
[420932627,1776738645098,-160.0,0.00016928,5]
[420932628,1776738645108,-155.0,0.00016971,2]
[420932629,1776738645118,-223.07183098,0.00016973,2]
[420932630,1776738645127,-162.29279293,0.00016973,2]
[420932631,1776738645137,-500.0,0.00016986,2]
[420932632,1776738645147,-500.0,0.00016986,2]
[420932633,1776738645157,-500.0,0.00016986,2]
[420932634,1776738645167,-500.0,0.00016986,2]
[420932635,1776738645178,-500.0,0.00016986,2]
[420932636,1776738645188,-500.0,0.00016986,2]
[420932637,1776738645199,-550.2,0.00016986,2]
[420932638,1776738645210,-500.0,0.00016986,2]
[420932639,1776738645220,-500.0,0.00016986,2]
[420932640,1776738645231,-555.17,0.00016986,2]
[420932641,1776738645241,-500.0,0.00016986,2]
[420932642,1776738645251,-500.0,0.00016986,2]
[420932643,1776738645262,-500.0,0.00016986,2]
[420932644,1776738645272,-411.74290102,0.00016986,2]
[420932645,1776738645282,-566.33,0.00016986,2]
[420932646,1776738645293,-500.0,0.00016986,2]
[420932647,1776738645530,-700.65,0.00016986,2]
[420932648,1776738645540,-663.16,0.00016986,2]
[420932649,1776738645549,-500.0,0.00016986,2]
[420932650,1776738645558,-500.0,0.00016986,2]
[420932651,1776738645568,-1395.49,0.00016986,2]
[420932652,1776738645577,-500.0,0.00016986,2]
[420932653,1776738645586,-500.0,0.00016986,2]
[420932654,1776738645595,-915.61,0.00016986,2]
[420932655,1776738645604,-500.0,0.00016986,2]
[420932656,1776738645614,-500.0,0.00016986,2]
[420932657,1776738645623,-500.0,0.00016986,2]
[420932658,1776738645633,-500.0,0.00016986,2]
[420932659,1776738645642,-500.0,0.00016986,2]
[420932660,1776738645651,-500.0,0.00016986,2]
[420932661,1776738645659,-500.0,0.00016986,2]
[420932662,1776738645669,-500.0,0.00016986,2]
[420932663,1776738645678,-500.0,0.00016986,2]
[420932664,1776738645687,-1554.06,0.00016986,2]
[420932665,1776738645696,-500.0,0.00016986,2]
[420932666,1776738645705,-582.68,0.00016986,2]
[420932667,1776738645715,-5611.23,0.00016986,2]
[420932668,1776738645724,-500.0,0.00016986,2]
[420932669,1776738645733,-8913.81,0.00016986,2]
[420932670,1776738645742,-468.87518614,0.00016986,2]
[420932671,1776738645751,-500.0,0.00016986,2]
[420932672,1776738645760,-1546.18,0.00016986,2]
[420932673,1776738645769,-7372.06,0.00016986,2]
[420932674,1776738645778,-6200.61,0.00016986,2]
[420932675,1776738645789,-578.24,0.00016986,2]
[420932676,1776738645798,-947.65,0.00016986,2]
[420932677,1776738645809,-585.09,0.00016986,2]
[420932678,1776738645819,-500.0,0.00016986,2]
[420932679,1776738645829,-433.2518859,0.00016986,2]
[420932680,1776738645840,-500.0,0.00016986,2]
[420932681,1776738645850,-755.07,0.00016986,2]
[420932682,1776738645859,-500.0,0.00016986,2]
[420932683,1776738645868,-500.0,0.00016986,2]
[420932684,1776738645878,-736.57,0.00016986,2]
[420932685,1776738645887,-1858.23,0.00016986,2]
[420932686,1776738645897,-683.84,0.00016986,2]
[420932687,1776738645907,-3391.67,0.00016986,2]
[420932688,1776738645919,-2845.63,0.00016986,2]
[420932689,1776738645928,-942.56,0.00016986,2]
[420932690,1776738645938,-500.0,0.00016986,2]
[420932691,1776738645948,-500.0,0.00016986,2]
[420932692,1776738645957,-527.23123487,0.00016986,2]
[420932693,1776738645966,-931.87,0.00016986,2]
[420932694,1776738645975,-1468.68,0.00016986,2]
[420932695,1776738645984,-1208.98,0.00016986,2]
[420932696,1776738645994,-909.52,0.00016986,2]
[420932697,1776738646003,-500.0,0.00016986,2]
[420932698,1776738646012,-634.37,0.00016986,2]
[420932699,1776738646021,-1393.62,0.00016986,2]
[420932700,1776738646030,-1631.25,0.00016986,2]
[420932701,1776738646040,-1034.79,0.00016986,2]
[420932703,1776738646049,-5412.07,0.00016986,2]
[420932704,1776738646058,-1333.09,0.00016986,2]
[420932705,1776738646067,-500.0,0.00016986,2]
[420932706,1776738646076,-1055.62,0.00016986,2]
[420932707,1776738646085,-2738.88,0.00016986,2]
[420932708,1776738646095,-2731.89,0.00016986,2]
[420932709,1776738646104,-2600.62,0.00016986,2]
[420932710,1776738646113,-2254.44,0.00016986,2]
[420932711,1776738646122,-500.0,0.00016986,2]
[420932712,1776738646131,-2088.86,0.00016986,2]
[420932713,1776738646141,-500.0,0.00016986,2]
[420932714,1776738646150,-3845.39,0.00016986,2]
[420932715,1776738646159,-750.4,0.00016986,2]
[420932716,1776738646168,-2809.13,0.00016986,2]
[420932717,1776738646177,-5431.02,0.00016986,2]
[420932718,1776738646186,-500.0,0.00016986,2]
[420932719,1776738646195,-500.0,0.00016986,2]
[420932720,1776738646204,-500.0,0.00016986,2]
[420932721,1776738646214,-844.1,0.00016986,2]
[420932722,1776738646223,-764.76,0.00016986,2]
[420932723,1776738646232,-633.80065482,0.00016986,2]
[420932724,1776738646241,-628.08,0.00016986,2]
[420932725,1776738646250,-2269.79,0.00016986,2]
[420932726,1776738646259,-5859.1,0.00016986,2]
[420932727,1776738646268,-500.0,0.00016986,2]
[420932728,1776738646278,-500.0,0.00016986,2]
[420932729,1776738646287,-4245.16,0.00016986,2]
[420932730,1776738646296,-701.39,0.00016986,2]
[420932731,1776738646305,-915.33,0.00016986,2]
[420932732,1776738646314,-3796.29,0.00016986,2]
[420932733,1776738646323,-500.0,0.00016986,2]
[420932734,1776738646332,-23822.54,0.00016986,2]
[420932735,1776738646342,-1937.17,0.00016986,2]
[420932736,1776738646351,-939.33,0.00016986,2]
[420932737,1776738646360,-519.24,0.00016986,2]
[420932738,1776738646370,-2092.51,0.00016986,2]
[420932739,1776738646379,-500.0,0.00016986,2]
[420932740,1776738646389,-528.23,0.00016986,2]
[420932741,1776738646398,-1690.89,0.00016986,2]
[420932742,1776738646408,-3778.88,0.00016986,2]
[420932743,1776738646417,-1209.507,0.00016986,2]
[420932744,1776738646426,-5153.07631436,0.00017,2]
[420932745,1776738646436,-1000.55,0.00017,10]
[420932746,1776738646445,-65904.10924243,0.00017,4]
[420932747,1776738646454,-1000.0,0.00017021,2]
[420932748,1776738646463,-250.0,0.00017021,2]
[420932749,1776738646472,-1000.0,0.00017021,2]
[420932750,1776738646482,-1000.0,0.00017021,2]
[420932751,1776738646491,-1020.46533127,0.00017021,2]
[420932752,1776738646500,-1000.0,0.00017021,2]
[420932753,1776738646510,-1000.0,0.00017021,2]
[420932754,1776738646520,-1000.0,0.00017021,2]
[420932755,1776738646530,-5006.87,0.00017033,5]
[420932756,1776738646540,-285.93,0.000171,2]
[420932757,1776738646550,-10225.74044691,0.000171,2]
[420932758,1776738646559,-276.0,0.00017148,2]
[420932759,1776738646568,-347.0,0.00017148,2]
[420932760,1776738646578,-495.0,0.00017148,2]
[420932761,1776738646588,-377.0,0.00017148,2]
[420932762,1776738646597,-10225.74044691,0.000172,2]
[420932763,1776738646607,-455.7290828,0.00017232,2]
[420932764,1776738646617,-455.7290828,0.00017235,2]
[420932765,1776738646626,-155.0,0.00017241,2]
[420932766,1776738646635,-1140.0,0.00017246,2]
[420932767,1776738646644,-587.68215632,0.0001726,2]
[420932768,1776738646654,-500.0,0.0001726,2]
[420932769,1776738646663,-500.0,0.0001726,2]
[420932770,1776738646672,-500.0,0.0001726,2]
[420932771,1776738646682,-500.0,0.0001726,2]
[420932772,1776738646692,-500.0,0.0001726,2]
[420932773,1776738646701,-550.2,0.0001726,2]
[420932774,1776738646711,-500.0,0.0001726,2]
[420932775,1776738646720,-500.0,0.0001726,2]
[420932776,1776738646730,-555.17,0.0001726,2]
[420932777,1776738646739,-500.0,0.0001726,2]
[420932778,1776738646749,-500.0,0.0001726,2]
[420932779,1776738646758,-500.0,0.0001726,2]
[420932780,1776738646768,-566.33,0.0001726,2]
[420932781,1776738646777,-177.1907712,0.0001726,2]
[420932782,1776738646786,-700.65,0.0001726,2]
[420932783,1776738646796,-663.16,0.0001726,2]
[420932784,1776738646805,-500.0,0.0001726,2]
[420932785,1776738646814,-500.0,0.0001726,2]
[420932786,1776738646823,-1395.49,0.0001726,2]
[420932787,1776738646832,-500.0,0.0001726,2]
[420932788,1776738646841,-500.0,0.0001726,2]
[420932789,1776738646850,-915.61,0.0001726,2]
[420932790,1776738646859,-500.0,0.0001726,2]
[420932791,1776738646868,-500.0,0.0001726,2]
[420932792,1776738646878,-500.0,0.0001726,2]
[420932793,1776738646887,-500.0,0.0001726,2]
[420932794,1776738646896,-500.0,0.0001726,2]
[420932795,1776738646905,-500.0,0.0001726,2]
[420932796,1776738646914,-500.0,0.0001726,2]
[420932797,1776738646924,-500.0,0.0001726,2]
[420932798,1776738646933,-500.0,0.0001726,2]
[420932799,1776738646942,-1554.06,0.0001726,2]
[420932801,1776738646951,-500.0,0.0001726,2]
[420932802,1776738646960,-582.68,0.0001726,2]
[420932803,1776738646970,-5611.23,0.0001726,2]
[420932805,1776738646979,-500.0,0.0001726,2]
[420932806,1776738646988,-8913.81,0.0001726,2]
[420932807,1776738646997,-500.0,0.0001726,2]
[420932809,1776738647006,-1546.18,0.0001726,2]
[420932810,1776738647015,-6200.61,0.0001726,2]
[420932811,1776738647025,-7372.06,0.0001726,2]
[420932812,1776738647034,-578.24,0.0001726,2]
[420932813,1776738647043,-947.65,0.0001726,2]
[420932814,1776738647052,-585.09,0.0001726,2]
[420932815,1776738647061,-500.0,0.0001726,2]
[420932816,1776738647070,-500.0,0.0001726,2]
[420932817,1776738647079,-755.07,0.0001726,2]
[420932818,1776738647089,-324.23489585,0.0001726,2]
[420932819,1776738647098,-404.68763609,0.0001726,2]
[420932820,1776738647107,-736.57,0.0001726,2]
[420932821,1776738647116,-1858.23,0.0001726,2]
[420932822,1776738647126,-683.84,0.0001726,2]
[420932823,1776738647135,-2845.63,0.0001726,2]
[420932824,1776738647144,-942.56,0.0001726,2]
[420932825,1776738647153,-500.0,0.0001726,2]
[420932826,1776738647162,-500.0,0.0001726,2]
[420932827,1776738647171,-931.87,0.0001726,2]
[420932828,1776738647180,-1468.68,0.0001726,2]
[420932829,1776738647189,-1208.98,0.0001726,2]
[420932830,1776738647199,-909.52,0.0001726,2]
[420932831,1776738647207,-3391.67,0.0001726,2]
[420932832,1776738647216,-500.0,0.0001726,2]
[420932833,1776738647226,-634.37,0.0001726,2]
[420932834,1776738647235,-1393.62,0.0001726,2]
[420932835,1776738647244,-1631.25,0.0001726,2]
[420932836,1776738647253,-1034.79,0.0001726,2]
[420932837,1776738647263,-5412.07,0.0001726,2]
[420932838,1776738647272,-1333.09,0.0001726,2]
[420932839,1776738647280,-500.0,0.0001726,2]
[420932840,1776738647290,-1055.62,0.0001726,2]
[420932841,1776738647299,-2738.88,0.0001726,2]
[420932842,1776738647308,-2731.89,0.0001726,2]
[420932843,1776738647317,-2600.62,0.0001726,2]
[420932844,1776738647327,-2254.44,0.0001726,2]
[420932845,1776738647336,-500.0,0.0001726,2]
[420932846,1776738647345,-2088.86,0.0001726,2]
[420932847,1776738647354,-500.0,0.0001726,2]
[420932848,1776738647363,-750.4,0.0001726,2]
[420932849,1776738647372,-2809.13,0.0001726,2]
[420932850,1776738647381,-5431.02,0.0001726,2]
[420932851,1776738647391,-500.0,0.0001726,2]
[420932852,1776738647400,-264.28917175,0.0001726,2]
[420932853,1776738647409,-500.0,0.0001726,2]
[420932854,1776738647418,-3845.39,0.0001726,2]
[420932855,1776738647428,-844.1,0.0001726,2]
[420932856,1776738647437,-764.76,0.0001726,2]
[420932857,1776738647447,-628.08,0.0001726,2]
[420932858,1776738647456,-2269.79,0.0001726,2]
[420932859,1776738647465,-5859.1,0.0001726,2]
[420932860,1776738647474,-500.0,0.0001726,2]
[420932861,1776738647483,-500.0,0.0001726,2]
[420932862,1776738647492,-4245.16,0.0001726,2]
[420932863,1776738647502,-701.39,0.0001726,2]
[420932864,1776738647511,-915.33,0.0001726,2]
[420932865,1776738647520,-3796.29,0.0001726,2]
[420932866,1776738647534,-500.0,0.0001726,2]
[420932867,1776738647544,-23822.54,0.0001726,2]
[420932868,1776738647553,-1937.17,0.0001726,2]
[420932869,1776738647563,-939.33,0.0001726,2]
[420932870,1776738647572,-519.24,0.0001726,2]
[420932871,1776738647582,-2092.51,0.0001726,2]
[420932872,1776738647591,-500.0,0.0001726,2]
[420932873,1776738647601,-528.23,0.0001726,2]
[420932874,1776738647610,-1690.89,0.0001726,2]
[420932875,1776738647620,-3778.88,0.0001726,2]
[420932876,1776738647631,-1209.507,0.0001726,2]
[420932877,1776738647640,-151.0,0.00017304,2]
[420932878,1776738647649,-260.0,0.00017317,2]
[420932879,1776738647658,-7358.76558814,0.00017319,2]
[420932880,1776738647667,-166.83046213,0.00017373,2]
[420932881,1776738647676,-10225.74044691,0.000174,2]
[420932882,1776738647685,-4829.85787762,0.00017482,2]
[420932883,1776738647695,-167.45779877,0.00017488,2]
[420932884,1776738647704,-155.0,0.0001751,2]
[420932885,1776738647713,-500.0,0.00017534,2]
[420932886,1776738647722,-500.0,0.00017534,2]
[420932887,1776738647732,-455.87201707,0.00017534,2]
[420932888,1776738647743,-500.0,0.00017534,2]
[420932889,1776738647752,-500.0,0.00017534,2]
[420932890,1776738647762,-550.2,0.00017534,2]
[420932891,1776738647772,-500.0,0.00017534,2]
[420932892,1776738647781,-500.0,0.00017534,2]
[420932893,1776738647790,-555.17,0.00017534,2]
[420932894,1776738647800,-500.0,0.00017534,2]
[420932895,1776738647809,-500.0,0.00017534,2]
[420932896,1776738647818,-157.93730833,0.00017534,2]
[420932897,1776738647827,-566.33,0.00017534,2]
[420932898,1776738647838,-700.65,0.00017534,2]
[420932899,1776738647847,-663.16,0.00017534,2]
[420932900,1776738647856,-500.0,0.00017534,2]
[420932901,1776738647865,-500.0,0.00017534,2]
[420932902,1776738647875,-1395.49,0.00017534,2]
[420932903,1776738647884,-500.0,0.00017534,2]
[420932904,1776738647893,-500.0,0.00017534,2]
[420932905,1776738647902,-915.61,0.00017534,2]
[420932906,1776738647911,-500.0,0.00017534,2]
[420932907,1776738647920,-500.0,0.00017534,2]
[420932908,1776738647930,-500.0,0.00017534,2]
[420932909,1776738647939,-500.0,0.00017534,2]
[420932910,1776738647948,-500.0,0.00017534,2]
[420932911,1776738647957,-500.0,0.00017534,2]
[420932912,1776738647966,-500.0,0.00017534,2]
[420932913,1776738647975,-500.0,0.00017534,2]
[420932914,1776738647984,-500.0,0.00017534,2]
[420932915,1776738647993,-1554.06,0.00017534,2]
[420932916,1776738648002,-500.0,0.00017534,2]
[420932917,1776738648011,-582.68,0.00017534,2]
[420932918,1776738648020,-5611.23,0.00017534,2]
[420932919,1776738648029,-500.0,0.00017534,2]
[420932920,1776738648039,-8913.81,0.00017534,2]
[420932921,1776738648048,-500.0,0.00017534,2]
[420932922,1776738648057,-1546.18,0.00017534,2]
[420932923,1776738648066,-6200.61,0.00017534,2]
[420932924,1776738648076,-7372.06,0.00017534,2]
[420932925,1776738648085,-578.24,0.00017534,2]
[420932926,1776738648094,-947.65,0.00017534,2]
[420932927,1776738648103,-585.09,0.00017534,2]
[420932928,1776738648112,-500.0,0.00017534,2]
[420932929,1776738648122,-500.0,0.00017534,2]
[420932930,1776738648131,-755.07,0.00017534,2]
[420932931,1776738648140,-736.57,0.00017534,2]
[420932932,1776738648150,-1858.23,0.00017534,2]
[420932933,1776738648159,-683.84,0.00017534,2]
[420932934,1776738648168,-2845.63,0.00017534,2]
[420932935,1776738648177,-942.56,0.00017534,2]
[420932936,1776738648187,-500.0,0.00017534,2]
[420932937,1776738648196,-622.85089516,0.00017534,2]
[420932938,1776738648206,-931.87,0.00017534,2]
[420932939,1776738648215,-1208.98,0.00017534,2]
[420932940,1776738648224,-909.52,0.00017534,2]
[420932941,1776738648233,-3391.67,0.00017534,2]
[420932942,1776738648242,-500.0,0.00017534,2]
[420932943,1776738648252,-1468.68,0.00017534,2]
[420932944,1776738648261,-634.37,0.00017534,2]
[420932945,1776738648270,-1393.62,0.00017534,2]
[420932946,1776738648280,-1631.25,0.00017534,2]
[420932947,1776738648289,-1034.79,0.00017534,2]
[420932948,1776738648298,-5412.07,0.00017534,2]
[420932949,1776738648308,-1333.09,0.00017534,2]
[420932950,1776738648317,-517.59814031,0.00017534,2]
[420932951,1776738648327,-1055.62,0.00017534,2]
[420932952,1776738648336,-2738.88,0.00017534,2]
[420932953,1776738648347,-2731.89,0.00017534,2]
[420932954,1776738648356,-2600.62,0.00017534,2]
[420932955,1776738648365,-2254.44,0.00017534,2]
[420932956,1776738648374,-500.0,0.00017534,2]
[420932957,1776738648383,-2088.86,0.00017534,2]
[420932958,1776738648392,-500.0,0.00017534,2]
[420932959,1776738648401,-750.4,0.00017534,2]
[420932960,1776738648411,-40.73626684,0.00017534,2]
[420932961,1776738648730,-498.60000145,0.00017534,2]
[420932962,1776738648743,-509.34019575,0.00017534,2]
[420932963,1776738648784,-493.6422938,0.000152,2]
[420932964,1776738648795,-6.3577062,0.000152,2]
[420932965,1776738648805,-180.0,0.00016164,2]
[420932966,1776738648814,-1760.45353596,0.00017534,2]
[420932967,1776738648823,-4895.78885328,0.00017534,2]
[420932968,1776738648838,-535.23114672,0.00017534,2]
[420932969,1776738648847,-500.0,0.00017534,2]
[420932970,1776738648856,-500.0,0.00017534,2]
[420932971,1776738648865,-3845.39,0.00017534,2]
[420932972,1776738648874,-844.1,0.00017534,2]
[420932973,1776738648883,-764.76,0.00017534,2]
[420932974,1776738648892,-628.08,0.00017534,2]
[420932975,1776738648901,-2269.79,0.00017534,2]
[420932976,1776738648910,-5859.1,0.00017534,2]
[420932977,1776738648920,-500.0,0.00017534,2]
[420932978,1776738648929,-500.0,0.00017534,2]
[420932979,1776738648938,-4245.16,0.00017534,2]
[420932980,1776738648950,-701.39,0.00017534,2]
[420932981,1776738648960,-915.33,0.00017534,2]
[420932982,1776738648969,-3796.29,0.00017534,2]
[420932983,1776738648978,-500.0,0.00017534,2]
[420932984,1776738648987,-16801.95090673,0.00017534,2]
[420932985,1776738648999,-3795.1,0.00017534,2]
[420932986,1776738649010,-1283.82286199,0.00017534,2]
[420932987,1776738649021,-1316.27915126,0.00017534,2]
[420932988,1776738649033,-361.0,0.00017534,2]
[420932989,1776738649044,-264.38708002,0.00017534,2]
[420932990,1776738649053,-1937.17,0.00017534,2]
[420932991,1776738649063,-939.33,0.00017534,2]
[420932992,1776738649072,-519.24,0.00017534,2]
[420932993,1776738649081,-2092.51,0.00017534,2]
[420932994,1776738649090,-500.0,0.00017534,2]
[420932995,1776738649100,-38.95391462,0.00017534,2]
[420932996,1776738649111,-489.27608538,0.00017534,2]
[420932997,1776738649120,-1690.89,0.00017534,2]
[420932998,1776738649130,-3778.88,0.00017534,2]
[420932999,1776738649140,-1209.507,0.00017534,2]
[420933000,1776738649149,-1500.0,0.00017568,2]
[420933001,1776738649159,-350.0,0.00017568,2]
[420933002,1776738649168,-1004.26327901,0.00017568,2]
[420933003,1776738649178,-1001.64946746,0.00017568,2]
[420933004,1776738649187,-689.12924478,0.00017568,2]
[420933005,1776738649196,-1585.17193956,0.00017568,2]
[420933006,1776738649205,-1500.0,0.00017568,2]
[420933007,1776738649215,-10225.74044691,0.000176,2]
[420933008,1776738649224,-1346.71041931,0.000176,7]
[420933009,1776738649234,-194.53688473,0.00017626,2]
[420933010,1776738649243,-188.45977749,0.00017655,60]
[420933011,1776738649252,-1523.45522523,0.00017701,2]
[420933012,1776738649262,-160.0,0.00017773,6]
[420933013,1776738649271,-164.63206625,0.00017773,5]
[420933014,1776738649280,-155.0,0.00017779,2]